[Event "Titled Tuesday Blitz November 29 Late 2022"]
[White "Kamsky, Gata"]
[Black "Lewtak, Damian"]
[WhiteFideId "2000024"]
[BlackFideId "1141724"]
[WhiteElo "2666"]
[BlackElo "2329"]
[Result "1-0"]
[Round "02"]
[TimeControl "180+1"]
[Date "2022.11.30"]
[WhiteClock "0:00:32"]
[BlackClock "0:00:09"]

1. d4 {[%clk 0:03:00]}  d5 {[%clk 0:02:59]} 2. Bf4 {[%clk 0:03:00]}  Nf6 {[%clk 0:02:58]} 3. e3 {[%clk 0:02:59]}  e6 {[%clk 0:02:59]} 4. Nf3 {[%clk 0:02:58]}  Bd6 {[%clk 0:03:00]} 5. Bxd6 {[%clk 0:02:53]}  Qxd6 {[%clk 0:02:57]} 6. c4 {[%clk 0:02:54]}  Nbd7 {[%clk 0:02:55]} 7. Nc3 {[%clk 0:02:53]}  c6 {[%clk 0:02:52]} 8. Be2 {[%clk 0:02:49]}  dxc4 {[%clk 0:02:51]} 9. Bxc4 {[%clk 0:02:49]}  Qe7 {[%clk 0:02:45]} 10. O-O {[%clk 0:02:47]}  e5 {[%clk 0:02:37]} 11. e4 {[%clk 0:02:38]}  O-O {[%clk 0:02:31]} 12. a3 {[%clk 0:02:32]}  exd4 {[%clk 0:02:26]} 13. Qxd4 {[%clk 0:02:31]}  Qc5 {[%clk 0:02:16]} 14. Qxc5 {[%clk 0:02:26]}  Nxc5 {[%clk 0:02:17]} 15. e5 {[%clk 0:02:26]}  Nfe4 {[%clk 0:01:46]} 16. Nxe4 {[%clk 0:02:24]}  Nxe4 {[%clk 0:01:47]} 17. Rfe1 {[%clk 0:02:23]}  Nc5 {[%clk 0:01:47]} 18. b4 {[%clk 0:02:09]}  Be6 {[%clk 0:01:47]} 19. Bf1 {[%clk 0:01:51]}  Nb3 {[%clk 0:01:27]} 20. Rad1 {[%clk 0:01:49]}  a5 {[%clk 0:01:24]} 21. Ng5 {[%clk 0:01:37]}  Bd5 {[%clk 0:01:20]} 22. e6 {[%clk 0:01:32]}  f6 {[%clk 0:00:59]} 23. Ne4 {[%clk 0:01:27]}  Bxe6 {[%clk 0:00:50]} 24. Nxf6+ {[%clk 0:01:13]}  Rxf6 {[%clk 0:00:48]} 25. Rxe6 {[%clk 0:01:14]}  Rxe6 {[%clk 0:00:48]} 26. Bc4 {[%clk 0:01:14]}  Kf7 {[%clk 0:00:38]} 27. Bxb3 {[%clk 0:01:14]}  Kf6 {[%clk 0:00:36]} 28. Bxe6 {[%clk 0:01:12]}  Kxe6 {[%clk 0:00:37]} 29. g3 {[%clk 0:01:06]}  axb4 {[%clk 0:00:34]} 30. axb4 {[%clk 0:01:05]}  Ra4 {[%clk 0:00:34]} 31. Re1+ {[%clk 0:00:57]}  Kd6 {[%clk 0:00:35]} 32. Re4 {[%clk 0:00:56]}  b5 {[%clk 0:00:26]} 33. Rh4 {[%clk 0:00:51]}  c5 {[%clk 0:00:23]} 34. bxc5+ {[%clk 0:00:49]}  Kxc5 {[%clk 0:00:24]} 35. Rxh7 {[%clk 0:00:48]}  b4 {[%clk 0:00:24]} 36. Rxg7 {[%clk 0:00:44]}  b3 {[%clk 0:00:24]} 37. Rc7+ {[%clk 0:00:44]}  Kb6 {[%clk 0:00:22]} 38. Rc3 {[%clk 0:00:40]}  Ra3 {[%clk 0:00:19]} 39. Rc8 {[%clk 0:00:34]}  Ka5 {[%clk 0:00:15]} 40. Rb8 {[%clk 0:00:33]}  Ka4 {[%clk 0:00:12]} 41. Kg2 {[%clk 0:00:33]}  Ra2 {[%clk 0:00:10]} 42. h4 {[%clk 0:00:32]}  b2 {[%clk 0:00:09]} 43. h5 {[%clk 0:00:32]}  Ka3 {[%clk 0:00:09]} 44. h6 {[%clk 0:00:32]} 1-0


[Site "https://www.chess.com"]

[Event "Titled Tuesday Blitz November 29 Late 2022"]
[White "Kleiman, Jake"]
[Black "Sadhwani, Raunak"]
[WhiteFideId "2020041"]
[BlackFideId "35093487"]
[WhiteElo "2624"]
[BlackElo "2656"]
[Result "0-1"]
[Round "02"]
[TimeControl "180+1"]
[Date "2022.11.30"]
[WhiteClock "0:00:53"]
[BlackClock "0:02:05"]

1. e4 {[%clk 0:03:00]}  g6 {[%clk 0:02:58]} 2. d4 {[%clk 0:03:00]}  Bg7 {[%clk 0:02:59]} 3. Nc3 {[%clk 0:03:01]}  d6 {[%clk 0:02:59]} 4. Be3 {[%clk 0:03:01]}  a6 {[%clk 0:03:00]} 5. a4 {[%clk 0:03:01]}  Nf6 {[%clk 0:02:59]} 6. h3 {[%clk 0:03:01]}  O-O {[%clk 0:03:00]} 7. Nf3 {[%clk 0:03:02]}  Nc6 {[%clk 0:03:00]} 8. Be2 {[%clk 0:03:02]}  e5 {[%clk 0:03:00]} 9. dxe5 {[%clk 0:03:01]}  dxe5 {[%clk 0:03:00]} 10. O-O {[%clk 0:03:01]}  Nh5 {[%clk 0:03:00]} 11. Nd5 {[%clk 0:03:00]}  Nf6 {[%clk 0:02:56]} 12. Bg5 {[%clk 0:02:57]}  Be6 {[%clk 0:02:49]} 13. c3 {[%clk 0:02:40]}  Bxd5 {[%clk 0:02:46]} 14. Bxf6 {[%clk 0:02:30]}  Qxf6 {[%clk 0:02:47]} 15. Qxd5 {[%clk 0:02:25]}  Rfd8 {[%clk 0:02:25]} 16. Qb3 {[%clk 0:02:22]}  Na5 {[%clk 0:02:25]} 17. Qc2 {[%clk 0:02:09]}  c5 {[%clk 0:02:21]} 18. Rad1 {[%clk 0:02:03]}  c4 {[%clk 0:02:21]} 19. Rxd8+ {[%clk 0:01:58]}  Rxd8 {[%clk 0:02:22]} 20. Rd1 {[%clk 0:01:58]}  b5 {[%clk 0:02:22]} 21. axb5 {[%clk 0:01:56]}  axb5 {[%clk 0:02:23]} 22. g3 {[%clk 0:01:38]}  Nb3 {[%clk 0:02:12]} 23. Kg2 {[%clk 0:01:37]}  Nc5 {[%clk 0:02:10]} 24. h4 {[%clk 0:01:24]}  Rxd1 {[%clk 0:02:09]} 25. Bxd1 {[%clk 0:01:23]}  Qc6 {[%clk 0:02:09]} 26. Nd2 {[%clk 0:01:22]}  Bh6 {[%clk 0:02:09]} 27. Bf3 {[%clk 0:01:18]}  Qd6 {[%clk 0:02:05]} 28. Nf1 {[%clk 0:01:12]}  Qd3 {[%clk 0:02:05]} 29. Qxd3 {[%clk 0:00:55]}  Nxd3 {[%clk 0:02:06]} 30. Bg4 {[%clk 0:00:55]}  Nxb2 {[%clk 0:02:04]} 31. Bd7 {[%clk 0:00:54]}  b4 {[%clk 0:02:04]} 32. cxb4 {[%clk 0:00:53]}  c3 {[%clk 0:02:05]} 0-1


[Site "https://www.chess.com"]

[Event "Titled Tuesday Blitz November 29 Late 2022"]
[White "Kobo, Ori"]
[Black "Zhang, Derek"]
[WhiteFideId "2812320"]
[BlackFideId "2087871"]
[WhiteElo "2447"]
[BlackElo "2087"]
[Result "1-0"]
[Round "02"]
[TimeControl "180+1"]
[Date "2022.11.30"]
[WhiteClock "0:00:12"]
[BlackClock "0:00:02"]

1. Nf3 {[%clk 0:03:00]}  d6 {[%clk 0:03:00]} 2. d4 {[%clk 0:03:00]}  f5 {[%clk 0:03:00]} 3. g3 {[%clk 0:02:56]}  Nf6 {[%clk 0:03:01]} 4. Bg2 {[%clk 0:02:57]}  g6 {[%clk 0:03:01]} 5. O-O {[%clk 0:02:57]}  Bg7 {[%clk 0:03:02]} 6. c4 {[%clk 0:02:56]}  O-O {[%clk 0:03:02]} 7. b4 {[%clk 0:02:56]}  c6 {[%clk 0:02:59]} 8. Bb2 {[%clk 0:02:55]}  h6 {[%clk 0:02:59]} 9. Qb3 {[%clk 0:02:54]}  Kh7 {[%clk 0:02:59]} 10. Nbd2 {[%clk 0:02:52]}  Nbd7 {[%clk 0:02:57]} 11. Rfd1 {[%clk 0:02:48]}  Qc7 {[%clk 0:02:57]} 12. Rac1 {[%clk 0:02:47]}  e5 {[%clk 0:02:57]} 13. dxe5 {[%clk 0:02:37]}  Nxe5 {[%clk 0:02:55]} 14. c5 {[%clk 0:02:33]}  Nxf3+ {[%clk 0:02:54]} 15. Nxf3 {[%clk 0:02:32]}  d5 {[%clk 0:02:54]} 16. Be5 {[%clk 0:02:30]}  Qf7 {[%clk 0:02:51]} 17. Nd4 {[%clk 0:02:19]}  a6 {[%clk 0:02:49]} 18. h3 {[%clk 0:02:08]}  Re8 {[%clk 0:02:49]} 19. f4 {[%clk 0:02:08]}  Ne4 {[%clk 0:02:43]} 20. Bxg7 {[%clk 0:02:02]}  Qxg7 {[%clk 0:02:44]} 21. Kh2 {[%clk 0:01:58]}  g5 {[%clk 0:02:39]} 22. fxg5 {[%clk 0:01:38]}  hxg5 {[%clk 0:02:31]} 23. Qf3 {[%clk 0:01:33]}  Rf8 {[%clk 0:02:24]} 24. e3 {[%clk 0:01:30]}  Bd7 {[%clk 0:02:17]} 25. Qh5+ {[%clk 0:01:22]}  Qh6 {[%clk 0:02:16]} 26. Qxh6+ {[%clk 0:01:15]}  Kxh6 {[%clk 0:02:17]} 27. Bxe4 {[%clk 0:01:15]}  fxe4 {[%clk 0:02:15]} 28. Rf1 {[%clk 0:01:15]}  g4 {[%clk 0:01:26]} 29. h4 {[%clk 0:00:59]}  Kg7 {[%clk 0:00:51]} 30. a4 {[%clk 0:00:50]}  Rae8 {[%clk 0:00:41]} 31. Kg2 {[%clk 0:00:43]}  Rf3 {[%clk 0:00:13]} 32. Nxf3 {[%clk 0:00:42]}  exf3+ {[%clk 0:00:14]} 33. Kf2 {[%clk 0:00:42]}  Re4 {[%clk 0:00:13]} 34. Rb1 {[%clk 0:00:36]}  Bf5 {[%clk 0:00:09]} 35. Rfd1 {[%clk 0:00:24]}  Rc4 {[%clk 0:00:09]} 36. Rb2 {[%clk 0:00:25]}  Rc3 {[%clk 0:00:03]} 37. Rdd2 {[%clk 0:00:21]}  Kf6 {[%clk 0:00:03]} 38. b5 {[%clk 0:00:21]}  axb5 {[%clk 0:00:02]} 39. axb5 {[%clk 0:00:22]}  Bd3 {[%clk 0:00:02]} 40. bxc6 {[%clk 0:00:20]}  bxc6 {[%clk 0:00:03]} 41. Rb6 {[%clk 0:00:19]}  Bb5 {[%clk 0:00:03]} 42. Rb8 {[%clk 0:00:12]}  Rxc5 {[%clk 0:00:03]} 43. Rg8 {[%clk 0:00:12]}  Rc4 {[%clk 0:00:02]} 44. h5 {[%clk 0:00:12]}  Kf7 {[%clk 0:00:02]} 45. Rg5 {[%clk 0:00:12]} 1-0


[Site "https://www.chess.com"]

[Event "Titled Tuesday Blitz November 29 Late 2022"]
[White "Koellner, Ruben Gideon"]
[Black "Van Foreest, Jorden"]
[WhiteFideId "12993093"]
[BlackFideId "1039784"]
[WhiteElo "2303"]
[BlackElo "2661"]
[Result "0-1"]
[Round "02"]
[TimeControl "180+1"]
[Date "2022.11.30"]
[WhiteClock "0:00:08"]
[BlackClock "0:01:38"]

1. d4 {[%clk 0:03:00]}  Nf6 {[%clk 0:02:59]} 2. Bg5 {[%clk 0:03:00]}  d5 {[%clk 0:02:58]} 3. e3 {[%clk 0:03:00]}  c5 {[%clk 0:02:57]} 4. Bxf6 {[%clk 0:03:01]}  gxf6 {[%clk 0:02:56]} 5. dxc5 {[%clk 0:03:01]}  e6 {[%clk 0:02:55]} 6. c4 {[%clk 0:03:01]}  dxc4 {[%clk 0:02:55]} 7. Nd2 {[%clk 0:03:02]}  c3 {[%clk 0:02:54]} 8. bxc3 {[%clk 0:03:03]}  Nd7 {[%clk 0:02:52]} 9. c6 {[%clk 0:02:59]}  bxc6 {[%clk 0:02:51]} 10. Ngf3 {[%clk 0:02:53]}  f5 {[%clk 0:02:49]} 11. Be2 {[%clk 0:02:46]}  Bg7 {[%clk 0:02:49]} 12. Rc1 {[%clk 0:02:45]}  O-O {[%clk 0:02:49]} 13. Nd4 {[%clk 0:02:28]}  c5 {[%clk 0:02:46]} 14. Nc6 {[%clk 0:02:28]}  Qg5 {[%clk 0:02:38]} 15. Bf3 {[%clk 0:02:25]}  Bb7 {[%clk 0:02:34]} 16. Ne7+ {[%clk 0:02:22]}  Qxe7 {[%clk 0:02:33]} 17. Bxb7 {[%clk 0:02:23]}  Rab8 {[%clk 0:02:33]} 18. Bf3 {[%clk 0:02:21]}  Ne5 {[%clk 0:02:34]} 19. O-O {[%clk 0:02:19]}  Nd3 {[%clk 0:02:33]} 20. Rc2 {[%clk 0:02:13]}  Rfd8 {[%clk 0:02:33]} 21. Qe2 {[%clk 0:02:10]}  Qd7 {[%clk 0:02:14]} 22. Nb3 {[%clk 0:01:55]}  c4 {[%clk 0:02:09]} 23. Nd4 {[%clk 0:01:55]}  Rb6 {[%clk 0:02:05]} 24. g3 {[%clk 0:01:44]}  e5 {[%clk 0:02:05]} 25. Nc6 {[%clk 0:01:31]}  Rxc6 {[%clk 0:02:05]} 26. Bxc6 {[%clk 0:01:32]}  Qxc6 {[%clk 0:02:05]} 27. Qh5 {[%clk 0:01:27]}  Qg6 {[%clk 0:02:03]} 28. Qh4 {[%clk 0:01:25]}  Rc8 {[%clk 0:02:01]} 29. Qe7 {[%clk 0:01:21]}  f4 {[%clk 0:01:57]} 30. exf4 {[%clk 0:01:12]}  exf4 {[%clk 0:01:50]} 31. Re2 {[%clk 0:01:05]}  Qf5 {[%clk 0:01:48]} 32. Qb7 {[%clk 0:00:34]}  Rf8 {[%clk 0:01:46]} 33. Qe4 {[%clk 0:00:29]}  Qxe4 {[%clk 0:01:43]} 34. Rxe4 {[%clk 0:00:30]}  Rc8 {[%clk 0:01:43]} 35. Rb1 {[%clk 0:00:19]}  Bxc3 {[%clk 0:01:44]} 36. Rb7 {[%clk 0:00:19]}  Bf6 {[%clk 0:01:44]} 37. Rd7 {[%clk 0:00:07]}  c3 {[%clk 0:01:39]} 38. Rxd3 {[%clk 0:00:07]}  c2 {[%clk 0:01:39]} 39. Re1 {[%clk 0:00:08]}  c1=Q {[%clk 0:01:39]} 40. Rxc1 {[%clk 0:00:08]}  Rxc1+ {[%clk 0:01:39]} 41. Kg2 {[%clk 0:00:09]}  Rc2 {[%clk 0:01:39]} 42. gxf4 {[%clk 0:00:08]}  Rxa2 {[%clk 0:01:38]} 0-1


[Site "https://www.chess.com"]

[Event "Titled Tuesday Blitz November 29 Late 2022"]
[White "Korobov, Anton"]
[Black "Sokolovsky, Yahli"]
[WhiteFideId "14105730"]
[BlackFideId "2820242"]
[WhiteElo "3007"]
[BlackElo "2657"]
[Result "1-0"]
[Round "02"]
[TimeControl "180+1"]
[Date "2022.11.30"]
[WhiteClock "0:00:58"]
[BlackClock "0:00:04"]

1. d4 {[%clk 0:02:59]}  d6 {[%clk 0:03:00]} 2. c4 {[%clk 0:02:57]}  e5 {[%clk 0:03:00]} 3. Nf3 {[%clk 0:02:58]}  e4 {[%clk 0:02:58]} 4. Ng5 {[%clk 0:02:58]}  f5 {[%clk 0:02:58]} 5. Nc3 {[%clk 0:02:56]}  Nf6 {[%clk 0:02:50]} 6. h4 {[%clk 0:02:53]}  Be7 {[%clk 0:02:46]} 7. e3 {[%clk 0:02:54]}  Ng4 {[%clk 0:02:41]} 8. Nd5 {[%clk 0:02:40]}  Bxg5 {[%clk 0:02:31]} 9. hxg5 {[%clk 0:02:41]}  c6 {[%clk 0:02:31]} 10. Nf4 {[%clk 0:02:41]}  Qxg5 {[%clk 0:02:32]} 11. b3 {[%clk 0:02:37]}  O-O {[%clk 0:02:23]} 12. Ba3 {[%clk 0:02:37]}  Qf6 {[%clk 0:02:12]} 13. Be2 {[%clk 0:02:30]}  Na6 {[%clk 0:02:03]} 14. Qc2 {[%clk 0:02:24]}  Nc7 {[%clk 0:01:49]} 15. Qd2 {[%clk 0:02:03]}  a5 {[%clk 0:01:39]} 16. f3 {[%clk 0:02:01]}  Nh6 {[%clk 0:01:32]} 17. O-O-O {[%clk 0:01:59]}  b5 {[%clk 0:01:24]} 18. g4 {[%clk 0:01:40]}  bxc4 {[%clk 0:01:07]} 19. g5 {[%clk 0:01:31]}  Qxg5 {[%clk 0:01:04]} 20. Bxd6 {[%clk 0:01:32]}  Nd5 {[%clk 0:00:31]} 21. Bxc4 {[%clk 0:01:22]}  Rd8 {[%clk 0:00:25]} 22. Rdg1 {[%clk 0:01:21]}  Qxg1+ {[%clk 0:00:17]} 23. Rxg1 {[%clk 0:01:22]}  Rxd6 {[%clk 0:00:18]} 24. Qh2 {[%clk 0:01:22]}  Nf7 {[%clk 0:00:14]} 25. fxe4 {[%clk 0:01:09]}  fxe4 {[%clk 0:00:14]} 26. Nh5 {[%clk 0:01:05]}  g6 {[%clk 0:00:14]} 27. Rf1 {[%clk 0:01:05]}  Re6 {[%clk 0:00:04]} 28. Nf4 {[%clk 0:00:58]}  Nxf4 {[%clk 0:00:04]} 29. Qxf4 {[%clk 0:00:59]}  Ra7 {[%clk 0:00:03]} 30. Bxe6 {[%clk 0:00:58]}  Bxe6 {[%clk 0:00:04]} 31. Qb8+ {[%clk 0:00:58]} 1-0


[Site "https://www.chess.com"]

[Event "Titled Tuesday Blitz November 29 Late 2022"]
[White "Kuzmicz, Krystian"]
[Black "Fedoseev, Vladimir"]
[WhiteFideId "1119125"]
[BlackFideId "24130737"]
[WhiteElo "2661"]
[BlackElo "3037"]
[Result "0-1"]
[Round "02"]
[TimeControl "180+1"]
[Date "2022.11.30"]
[WhiteClock "0:00:04"]
[BlackClock "0:00:18"]

1. e4 {[%clk 0:03:00]}  c5 {[%clk 0:02:56]} 2. d3 {[%clk 0:03:01]}  g6 {[%clk 0:02:54]} 3. g3 {[%clk 0:03:01]}  Bg7 {[%clk 0:02:54]} 4. Bg2 {[%clk 0:03:02]}  Nc6 {[%clk 0:02:53]} 5. f4 {[%clk 0:03:02]}  d6 {[%clk 0:02:52]} 6. Nf3 {[%clk 0:03:03]}  Bg4 {[%clk 0:02:45]} 7. h3 {[%clk 0:03:02]}  Bxf3 {[%clk 0:02:44]} 8. Qxf3 {[%clk 0:03:03]}  e6 {[%clk 0:02:42]} 9. O-O {[%clk 0:03:02]}  Nge7 {[%clk 0:02:42]} 10. Nc3 {[%clk 0:03:02]}  O-O {[%clk 0:02:42]} 11. Be3 {[%clk 0:03:01]}  Rc8 {[%clk 0:02:38]} 12. g4 {[%clk 0:02:59]}  Nd4 {[%clk 0:02:36]} 13. Qf2 {[%clk 0:02:59]}  b5 {[%clk 0:02:30]} 14. f5 {[%clk 0:02:52]}  exf5 {[%clk 0:02:27]} 15. exf5 {[%clk 0:02:51]}  gxf5 {[%clk 0:02:28]} 16. g5 {[%clk 0:02:39]}  Ng6 {[%clk 0:02:25]} 17. Nd5 {[%clk 0:02:36]}  f4 {[%clk 0:02:13]} 18. Nxf4 {[%clk 0:02:14]}  Nf5 {[%clk 0:02:10]} 19. c3 {[%clk 0:00:39]}  Nxe3 {[%clk 0:02:08]} 20. Qxe3 {[%clk 0:00:39]}  Qxg5 {[%clk 0:02:07]} 21. Rae1 {[%clk 0:00:35]}  Rce8 {[%clk 0:01:46]} 22. Qxe8 {[%clk 0:00:28]}  Nxf4 {[%clk 0:01:31]} 23. Qe4 {[%clk 0:00:23]}  Nxh3+ {[%clk 0:01:30]} 24. Kh1 {[%clk 0:00:21]}  Qh6 {[%clk 0:01:28]} 25. Bxh3 {[%clk 0:00:18]}  Qxh3+ {[%clk 0:01:27]} 26. Kg1 {[%clk 0:00:19]}  Kh8 {[%clk 0:01:27]} 27. Re2 {[%clk 0:00:17]}  Be5 {[%clk 0:01:21]} 28. Rg2 {[%clk 0:00:16]}  f5 {[%clk 0:01:21]} 29. Qf3 {[%clk 0:00:14]}  Qh6 {[%clk 0:01:19]} 30. Kf2 {[%clk 0:00:12]}  b4 {[%clk 0:01:16]} 31. Ke2 {[%clk 0:00:12]}  bxc3 {[%clk 0:01:14]} 32. bxc3 {[%clk 0:00:12]}  Bxc3 {[%clk 0:01:13]} 33. Kd1 {[%clk 0:00:13]}  Rb8 {[%clk 0:01:04]} 34. Qd5 {[%clk 0:00:09]}  Be5 {[%clk 0:00:54]} 35. Rfg1 {[%clk 0:00:07]}  Qh5+ {[%clk 0:00:48]} 36. Kd2 {[%clk 0:00:07]}  Qe8 {[%clk 0:00:29]} 37. Kc1 {[%clk 0:00:06]}  Qf8 {[%clk 0:00:25]} 38. Rh1 {[%clk 0:00:05]}  Qe7 {[%clk 0:00:20]} 39. Rgg1 {[%clk 0:00:03]}  Bf4+ {[%clk 0:00:18]} 40. Kc2 {[%clk 0:00:03]}  Qe2+ {[%clk 0:00:18]} 41. Kc3 {[%clk 0:00:04]}  Qb2+ {[%clk 0:00:18]} 42. Kc4 {[%clk 0:00:04]}  Qc2# {[%clk 0:00:18]} 0-1


[Site "https://www.chess.com"]

[Event "Titled Tuesday Blitz November 29 Late 2022"]
[White "Malka, Samuel"]
[Black "Maksimovic, Bojan"]
[WhiteFideId "20643675"]
[BlackFideId "14408120"]
[WhiteElo "2417"]
[BlackElo "2447"]
[Result "0-1"]
[Round "02"]
[TimeControl "180+1"]
[Date "2022.11.30"]
[WhiteClock "0:00:18"]
[BlackClock "0:00:06"]

1. d4 {[%clk 0:03:00]}  Nf6 {[%clk 0:03:00]} 2. c4 {[%clk 0:03:01]}  g6 {[%clk 0:03:00]} 3. Nc3 {[%clk 0:03:01]}  Bg7 {[%clk 0:03:01]} 4. e4 {[%clk 0:03:01]}  d6 {[%clk 0:03:02]} 5. Nf3 {[%clk 0:03:02]}  O-O {[%clk 0:03:02]} 6. Be2 {[%clk 0:03:03]}  Nbd7 {[%clk 0:03:02]} 7. O-O {[%clk 0:03:02]}  e5 {[%clk 0:03:03]} 8. Be3 {[%clk 0:03:01]}  c6 {[%clk 0:03:03]} 9. Qc2 {[%clk 0:03:01]}  Qe7 {[%clk 0:03:02]} 10. d5 {[%clk 0:02:51]}  c5 {[%clk 0:02:58]} 11. Ne1 {[%clk 0:02:41]}  Kh8 {[%clk 0:02:56]} 12. Nd3 {[%clk 0:02:38]}  Ng8 {[%clk 0:02:56]} 13. b4 {[%clk 0:02:37]}  b6 {[%clk 0:02:55]} 14. Qd2 {[%clk 0:02:34]}  f5 {[%clk 0:02:43]} 15. f3 {[%clk 0:02:34]}  f4 {[%clk 0:02:38]} 16. Bf2 {[%clk 0:02:34]}  g5 {[%clk 0:02:39]} 17. Kh1 {[%clk 0:02:28]}  h5 {[%clk 0:02:37]} 18. Be1 {[%clk 0:02:26]}  Nh6 {[%clk 0:02:34]} 19. Nf2 {[%clk 0:02:27]}  Nf6 {[%clk 0:02:30]} 20. g3 {[%clk 0:02:22]}  Rg8 {[%clk 0:02:08]} 21. bxc5 {[%clk 0:02:21]}  bxc5 {[%clk 0:02:07]} 22. Rg1 {[%clk 0:02:19]}  Nf7 {[%clk 0:01:51]} 23. g4 {[%clk 0:02:12]}  hxg4 {[%clk 0:01:51]} 24. fxg4 {[%clk 0:02:11]}  Bf8 {[%clk 0:01:43]} 25. Bf3 {[%clk 0:02:10]}  Qd7 {[%clk 0:01:33]} 26. h3 {[%clk 0:02:08]}  Kg7 {[%clk 0:01:32]} 27. Nd3 {[%clk 0:02:08]}  Rh8 {[%clk 0:01:32]} 28. Kg2 {[%clk 0:02:09]}  Be7 {[%clk 0:01:31]} 29. Rh1 {[%clk 0:02:10]}  Bd8 {[%clk 0:01:31]} 30. Rb1 {[%clk 0:02:07]}  Ba5 {[%clk 0:01:28]} 31. Qc2 {[%clk 0:02:05]}  Ba6 {[%clk 0:01:26]} 32. Nb5 {[%clk 0:02:04]}  Bxe1 {[%clk 0:01:26]} 33. Rhxe1 {[%clk 0:02:01]}  Bxb5 {[%clk 0:00:28]} 34. cxb5 {[%clk 0:02:02]}  Rh6 {[%clk 0:00:26]} 35. Rh1 {[%clk 0:02:00]}  Rah8 {[%clk 0:00:25]} 36. a4 {[%clk 0:01:55]}  Rb8 {[%clk 0:00:23]} 37. Nb2 {[%clk 0:01:52]}  Nh8 {[%clk 0:00:24]} 38. Nc4 {[%clk 0:01:51]}  Ng6 {[%clk 0:00:24]} 39. Kf2 {[%clk 0:01:52]}  Nh4 {[%clk 0:00:25]} 40. Qd3 {[%clk 0:01:41]}  Rbh8 {[%clk 0:00:19]} 41. Bg2 {[%clk 0:01:37]}  Nxg2 {[%clk 0:00:18]} 42. Kxg2 {[%clk 0:01:38]}  Nxg4 {[%clk 0:00:18]} 43. b6 {[%clk 0:00:54]}  axb6 {[%clk 0:00:19]} 44. Nxb6 {[%clk 0:00:38]}  Qa7 {[%clk 0:00:19]} 45. hxg4 {[%clk 0:00:36]}  Rxh1 {[%clk 0:00:18]} 46. Rxh1 {[%clk 0:00:36]}  Qxb6 {[%clk 0:00:13]} 47. Rxh8 {[%clk 0:00:33]}  Qb2+ {[%clk 0:00:13]} 48. Kf3 {[%clk 0:00:21]}  Kxh8 {[%clk 0:00:11]} 49. Qb5 {[%clk 0:00:20]}  Qc3+ {[%clk 0:00:11]} 50. Kg2 {[%clk 0:00:14]}  Qd2+ {[%clk 0:00:09]} 51. Kf1 {[%clk 0:00:14]}  Qd1+ {[%clk 0:00:08]} 52. Kf2 {[%clk 0:00:14]}  Qd2+ {[%clk 0:00:08]} 53. Kf1 {[%clk 0:00:13]}  Qd1+ {[%clk 0:00:08]} 54. Kf2 {[%clk 0:00:13]}  Qd4+ {[%clk 0:00:09]} 55. Kf3 {[%clk 0:00:12]}  Qe3+ {[%clk 0:00:08]} 56. Kg2 {[%clk 0:00:13]}  Qxe4+ {[%clk 0:00:06]} 57. Kf1 {[%clk 0:00:14]}  Qh1+ {[%clk 0:00:03]} 58. Kf2 {[%clk 0:00:14]}  Qh2+ {[%clk 0:00:03]} 59. Kf3 {[%clk 0:00:14]}  Qh3+ {[%clk 0:00:02]} 60. Kf2 {[%clk 0:00:15]}  Qg3+ {[%clk 0:00:03]} 61. Kf1 {[%clk 0:00:15]}  Qf3+ {[%clk 0:00:03]} 62. Kg1 {[%clk 0:00:15]}  Qxg4+ {[%clk 0:00:04]} 63. Kf2 {[%clk 0:00:15]}  Qg3+ {[%clk 0:00:04]} 64. Kf1 {[%clk 0:00:15]}  Qf3+ {[%clk 0:00:04]} 65. Kg1 {[%clk 0:00:16]}  Qg3+ {[%clk 0:00:05]} 66. Kh1 {[%clk 0:00:16]}  f3 {[%clk 0:00:04]} 67. Qe8+ {[%clk 0:00:17]}  Kg7 {[%clk 0:00:04]} 68. Qe7+ {[%clk 0:00:17]}  Kg6 {[%clk 0:00:05]} 69. Qe6+ {[%clk 0:00:18]}  Kh5 {[%clk 0:00:06]} 70. Qe8+ {[%clk 0:00:17]}  Kh4 {[%clk 0:00:05]} 71. Qh8+ {[%clk 0:00:18]}  Kg4 {[%clk 0:00:05]} 72. Qc8+ {[%clk 0:00:19]}  Kf4 {[%clk 0:00:06]} 73. Qf8+ {[%clk 0:00:18]}  Ke3 {[%clk 0:00:06]} 0-1


[Site "https://www.chess.com"]